Cogmind - Beta 16.1 @@@ ROGUE MODE // 2026.04.05 @ 22:38:47 Player: obl-vn Result: Destroyed by as-54358 with Assembled Heavy Rifle Performance ------------- Evolutions (1) 500 Regions Visited (4) 800 Robots Destroyed (46) 230 Value Destroyed (906) 906 Prototype IDs (26) 520 Alien Tech Used (0) 0 Bonus (207) 207 TOTAL SCORE: 3163 Bonus ------- Aligned with FarCom 300 Friendly Fire -93 Cogmind --------- Core Integrity 0/400 Matter 300/300 Energy 41/100 System Corruption 6% Temperature Cool (84) Movement Treading (160) Location -9/Exiles Parts ------- > --- POWER (1) -------- (None) > --- PROPULSION (2) --- Light Treads Light Treads > --- UTILITY (2) ------ Improved Heat Sink Large Storage Unit > --- WEAPON (4) ------- (None) > --- INVENTORY (15) --- Armored Huge Wheel Experimental Sensor Array Pulse Rifle Pulse Rifle Pulse Rifle Pulse Rifle Peak State ------------ > --- POWER ------------ Improved Ion Engine > --- PROPULSION ------- Light Treads Light Treads > --- UTILITY ---------- Large Storage Unit Targeting Computer > --- WEAPON ----------- Heavy Assault Rifle Heavy Assault Rifle AWS/Gauss > --- INVENTORY -------- Light Treads Light Treads Light Treads Light Treads Armored Huge Wheel Improved Heat Sink High-capacity Matter Pod Experimental Sensor Array Pulse Rifle Pulse Rifle Pulse Rifle Pulse Rifle Improved Assault Rifle Improved Assault Rifle [Rating: 30] Favorites ----------- Power Improved Ion Engine Engine Improved Ion Engine Propulsion Light Treads Treads Light Treads Utility Targeting Computer Device Structural Scanner Storage Medium Storage Unit Processor Targeting Computer Weapon Improved Assault Rifle Energy Gun Pulse Rifle Ballistic Gun Improved Assault Rifle Build | -11 -10 -9 -9 -9 ------- Run | Yrd Mat Mat Min Exi Slots Evolved 2 | . . 2 . . Power . | . . . . . Propulsion . | . . . . . Utility . | . . . . . Weapon 2 | . . 2 . . Parts Attached 39 | 6 2 27 1 3 Power 5 | 1 . 4 . . Engine 5 | 1 . 4 . . Core . | . . . . . Reactor . | . . . . . Propulsion 12 | 2 . 9 . 1 Treads 12 | 2 . 9 . 1 Leg . | . . . . . Wheel . | . . . . . Hover . | . . . . . Flight . | . . . . . Utility 6 | 1 2 1 1 1 Device 2 | . 1 . . 1 Storage 3 | 1 . 1 1 . Processor 1 | . 1 . . . Hackware . | . . . . . Protection . | . . . . . Artifact . | . . . . . Weapon 16 | 2 . 13 . 1 Energy Gun 2 | . . 2 . . Energy Cannon . | . . . . . Ballistic Gun 14 | 2 . 11 . 1 Ballistic Cannon . | . . . . . Launcher . | . . . . . Special Weapon . | . . . . . Impact Weapon . | . . . . . Slashing Weapon . | . . . . . Piercing Weapon . | . . . . . Special Melee Weapon . | . . . . . Unidentified Prototypes 1 | . . 1 . . Parts Lost 13 | . . 2 . 11 Power 2 | . . 1 . 1 Propulsion 5 | . . 1 . 4 Utility 1 | . . . . 1 Weapon 5 | . . . . 5 Highest Loss Streak 11 | . . 1 . 11 To Critical Strikes 7 | . . . . 7 Average Backups 9 | . 3 9 11 12 Power . | . . . . . Propulsion 4 | . . 4 4 4 Utility 2 | . 1 2 2 2 Weapon 3 | . . 3 4 4 Tool/Special . | . . . . . Unused Backups 14 | . . 8 1 5 Power . | . . . . . Propulsion 5 | . . 4 . 1 Utility 3 | . . . 1 2 Weapon 6 | . . 4 . 2 Tool/Special . | . . . . . Average Slot Usage (%) 98 | . 97 99 100 91 Engine 11 | . 14 10 11 10 Treads 22 | . 28 22 22 21 Storage 11 | . 14 11 11 11 Processor 10 | . 8 11 11 10 Ballistic Gun 41 | . 28 43 44 37 Peak Build Rating 30 | 6 8 18 19 30 Average Rating 15 | 4 7 14 18 23 On Entrance 10 | . 6 8 18 19 Avg Prop Armor Cover (%) . | . . . . . Naked Turns . | . . . . . Heaviest Build 43 | 13 14 29 39 43 Greatest Support 40 | 40 40 40 40 40 Greatest Overweight (x) 1 | . . . . 1 Average Overweight (x) . | . . . . . Largest Inventory Capacity 15 | 8 8 10 15 15 Average Capacity 11 | 7 8 9 13 15 Most Carried 15 | 5 8 10 13 15 Average Carried 10 | . 3 9 12 13 Final Capacity 15 | 8 8 10 15 15 Final Carried 13 | . 8 10 13 7 Class Distribution -------------------- 81% | Scavenger-Gunner 11% | Mutant 6% | Gunner Dominant Class ---------------- Mutant | -10/Materials Scavenger-Gunner | -9/Materials Scavenger-Gunner | -9/Mines Scavenger-Gunner | -9/Exiles Resources | -11 -10 -9 -9 -9 ----------- Run | Yrd Mat Mat Min Exi Matter Collected 1568 | 209 325 824 66 144 Remotely . | . . . . . Salvage Created 1581 | 18 225 1319 19 . Parts 95 | 3 15 75 2 . Haulers Intercepted 7 | . 1 6 . . Recyclers Shooed 1 | . . 1 . . Parts Field Recycled . | . . . . . Retrieved Matter . | . . . . . Parts Self-Destructed . | . . . . . Prevented . | . . . . . Parts Restored . | . . . . . Kills | -11 -10 -9 -9 -9 ------- Run | Yrd Mat Mat Min Exi Combat Hostiles Destroyed 27 | . 4 23 . . Guns 27 | . 4 23 . . Classes Destroyed 10 | 1 3 6 . . Worker 5 | . 1 3 1 . Tunneler 1 | 1 . . . . Hauler 7 | . 1 6 . . Recycler 1 | . . 1 . . Operator 1 | . . 1 . . Watcher 4 | . . 4 . . Swarmer 10 | . . 10 . . Grunt 9 | . 4 5 . . Duelist 1 | . . 1 . . Sentry 7 | . . 7 . . Best Kill Streak 5 | 1 2 5 1 . Combat Bots Only 4 | . 2 4 . . Max Kills in Single Turn 2 | 1 1 2 1 . Gunslinging . | . . . . . Exploded . | . . . . . Melee . | . . . . . Uniques/NPCs Destroyed . | . . . . . Combat | -11 -10 -9 -9 -9 -------- Run | Yrd Mat Mat Min Exi Hostile Shots Fired 256 | . 36 93 . 127 Missed 65 | . 8 26 . 31 Hits 191 | . 28 67 . 96 Melee 12 | . . . . 12 Projectile 179 | . 28 67 . 84 Critical Strikes 26 | . . 3 . 23 Part Disruptions 3 | . . . . 3 Damage Taken 2757 | . 336 747 . 1674 Core 489 | . 81 140 . 268 Absorbed by Shields . | . . . . . Core Remaining (%) 83 | 100 67 . . . Volleys Fired 122 | 1 27 75 2 17 Largest 4 | 2 2 4 4 2 Hottest 92 | 40 40 92 92 46 Shots Fired 390 | 2 54 300 8 26 Gun 390 | 2 54 300 8 26 Cannon . | . . . . . Launcher . | . . . . . Special . | . . . . . Kinetic 390 | 2 54 300 8 26 Thermal . | . . . . . Explosive . | . . . . . Electromagnetic . | . . . . . Robot Hit Streak 34 | 1 10 27 28 34 Robot Miss Streak 8 | . 3 8 . 1 Penetration Max . | . . . . . Secondary Targets 7 | . 1 6 . . Max Gunslinging Chain 1 | . 1 1 . . Shots Hit Robots 226 | 1 36 163 1 25 Core Hits 90 | 1 13 71 1 4 Critical Kills . | . . . . . Critical Parts Destroyed 2 | . 1 1 . . Critical Strikes 2 | . 1 1 . . Destroy 2 | . 1 1 . . Melee Attacks . | . . . . . Impact . | . . . . . Slashing . | . . . . . Piercing . | . . . . . Sneak Attacks . | . . . . . Combat Hostiles . | . . . . . Follow-up Attacks . | . . . . . Damage Inflicted 2639 | 12 374 1833 20 400 Guns 2633 | 12 372 1833 16 400 Cannons . | . . . . . Explosions . | . . . . . Melee . | . . . . . Ramming 6 | . 2 . 4 . Kinetic 2633 | 12 372 1833 16 400 Thermal . | . . . . . Explosive . | . . . . . Electromagnetic . | . . . . . Impact . | . . . . . Slashing . | . . . . . Piercing . | . . . . . Highest Corruption 6 | . . . . 6 Average Corruption 5 | . . . . 5 Corruption Purged . | . . . . . Corruption Blocked . | . . . . . Effects 2 | . . . . 2 Heat Flow Errors 1 | . . . . 1 Energy Discharges 1 | . . . . 1 Overload Shots . | . . . . . Overflow Damage . | . . . . . Projectiles . | . . . . . Explosions . | . . . . . Melee . | . . . . . Knockbacks . | . . . . . Impact . | . . . . . Kinetic . | . . . . . Secondary . | . . . . . Self-Inflicted Damage . | . . . . . Shots . | . . . . . Rammed 3 | . 2 . 1 . Targets Rammed 3 | . 2 . 1 . Kicked . | . . . . . Crushed . | . . . . . Highest Temperature 269 | . 26 102 6 269 Average Temperature 31 | . 9 31 4 69 Received Heat Transfer 663 | . 183 216 . 264 Siege Activations . | . . . . . Martial Activations . | . . . . . Shielding Activations . | . . . . . Robots Disrupted . | . . . . . Combat Hostiles . | . . . . . Robots Corrupted . | . . . . . Combat Hostiles . | . . . . . Parts Fried . | . . . . . Impact Corruptions . | . . . . . Robots Melted . | . . . . . Combat Hostiles . | . . . . . Parts Melted . | . . . . . Heat Transferred . | . . . . . Parts Sabotaged . | . . . . . Parts Stolen . | . . . . . Parts Stripped . | . . . . . Power Chain Reactions . | . . . . . Alert | -11 -10 -9 -9 -9 ------- Run | Yrd Mat Mat Min Exi Maximum Alert Level . | . . . . . Low Security (%) 100 | 100 100 100 100 . Level 1 . | . . . . . Level 2 . | . . . . . Level 3 . | . . . . . Level 4 . | . . . . . Level 5 . | . . . . . High Security . | . . . . . Max Security . | . . . . . Peak Influence 172 | 5 40 172 57 . Initial 57 | . 3 . 57 . Average 57 | . 9 107 3 . Influence Increases 867 | 5 116 740 6 . Destroy 0b10 Robot/C 540 | . 80 460 . . Destroy 0b10 Robot/NC 95 | 5 10 75 5 . Destroy Leader 172 | . 22 150 . . Allied During Kill 1 | . . . 1 . Successful Hack 24 | . 4 20 . . Destroy Structure 5 | . . 5 . . Lose Combat Pursuer 30 | . . 30 . . Influence Decreases 867 | . 121 593 153 . Entered New Map 92 | . 2 . 90 . Time Decay 755 | . 119 573 63 . Lost Part 20 | . . 20 . . Squads Dispatched 6 | . 4 1 1 . Investigation 2 | . 1 . 1 . Extermination . | . . . . . Reinforcement 4 | . 3 1 . . Assault . | . . . . . Garrison . | . . . . . Intercept . | . . . . . Searches Triggered . | . . . . . Construction Impeded . | . . . . . Haulers Reinforced . | . . . . . Active Scanning Responses . | . . . . . Cargo Convoy Interrupts . | . . . . . Stealth | -11 -10 -9 -9 -9 --------- Run | Yrd Mat Mat Min Exi Distress Signals 3 | . . 3 . . Communications Jammed . | . . . . . Distress Signals . | . . . . . Times Spotted 59 | . 10 38 3 8 Peak Tracking Total 9 | . 5 4 2 9 Tactical Retreats 1 | . . 1 . . Traps | -11 -10 -9 -9 -9 ------- Run | Yrd Mat Mat Min Exi Traps Triggered 1 | . 1 . . . Indirectly . | . . . . . Trap Hack Attempts . | . . . . . Triggered . | . . . . . Disarmed . | . . . . . Reprogrammed . | . . . . . Reused . | . . . . . Traps Extracted . | . . . . . Installed . | . . . . . Triggered . | . . . . . Machines | -11 -10 -9 -9 -9 ---------- Run | Yrd Mat Mat Min Exi Machines Disabled 2 | . . . . 2 Max in Single Turn . | . . . . . Machines Repaired . | . . . . . Machines Dismantled . | . . . . . Machines Sabotaged . | . . . . . Overloaded Fab Kills . | . . . . . Hacking | -11 -10 -9 -9 -9 --------- Run | Yrd Mat Mat Min Exi Machines Accessed 13 | . 1 10 1 1 Terminals 10 | . 1 9 . . Fabricators . | . . . . . Repair Stations . | . . . . . Recycling Units . | . . . . . Scanalyzers 1 | . . 1 . . Garrison Access . | . . . . . Total Hacks 29 | . 3 24 1 1 Successful 19 | . 2 15 1 1 Failed 10 | . 1 9 . . Catastrophic 2 | . . 2 . . Database Lockouts . | . . . . . Manual 15 | . 2 12 . 1 Terminals 21 | . 3 18 . . Fabricators . | . . . . . Repair Stations . | . . . . . Recycling Units . | . . . . . Scanalyzers 6 | . . 6 . . Garrison Access . | . . . . . Terminal Hacks 6 | . 1 3 1 1 Prototype ID Bank 1 | . . 1 . . Open Door 1 | . . . 1 . Locate Traps 1 | . 1 . . . Zone Layout 2 | . . 2 . . Proto ID Catalog 1 | . . . . 1 Fabricator Hacks . | . . . . . Repair Station Hacks . | . . . . . Recycling Unit Hacks . | . . . . . Scanalyzer 4 | . . 4 . . Retrieve Study 4 | . . 4 . . Garrison Access Hacks . | . . . . . Unauthorized Hacks 8 | . 1 7 . . Terminals 8 | . 1 7 . . Botnet 1 | . . 1 . . Operators 1 | . . 1 . . Skim 6 | . 1 5 . . Fabricators . | . . . . . Repair Stations . | . . . . . Recycling Units . | . . . . . Scanalyzers . | . . . . . Garrison Access . | . . . . . Data Cores Recovered 1 | . . 1 . . Used . | . . . . . Hacking Detections 9 | . 1 8 . . Full Trace Events . | . . . . . Feedback Events . | . . . . . Feedback Blocked . | . . . . . Robot Schematics Acquired . | . . . . . Robots Built . | . . . . . Authchips . | . . . . . Time . | . . . . . Total Robot Build Rating . | . . . . . Part Schematics Acquired . | . . . . . Parts Built . | . . . . . Authchips . | . . . . . Time . | . . . . . Total Part Build Rating . | . . . . . Part Studies Acquired 4 | . . 4 . . Parts Repaired . | . . . . . Time . | . . . . . Parts Recycled . | . . . . . Recycled Matter . | . . . . . Retrieved Matter . | . . . . . Retrieved Components . | . . . . . Parts Scanalyzed . | . . . . . Part Schematics Acquired . | . . . . . Parts Damaged . | . . . . . Bothacking | -11 -10 -9 -9 -9 ------------ Run | Yrd Mat Mat Min Exi Used RIF Installer . | . . . . . Robots Hacked . | . . . . . Non-combat . | . . . . . Combat . | . . . . . Robot Hacks Applied . | . . . . . Relay Couplers Released . | . . . . . Fabnet Peak Effective % . | . . . . . Robots Rewired . | . . . . . Allies Hacked . | . . . . . Hacks Repelled . | . . . . . Allies | -11 -10 -9 -9 -9 -------- Run | Yrd Mat Mat Min Exi Total Allies 5 | . . . 5 . Largest Group 5 | . . . 5 5 Highest-Rated Group 81 | . . . 81 81 Highest-Rated Ally 31 | . . . 31 31 Total Orders . | . . . . . Ally Attacks 41 | . . . . 41 Total Damage 135 | . . . . 135 Kills 1 | . . . . 1 Allies Corrupted . | . . . . . Allies Melted . | . . . . . Intel | -11 -10 -9 -9 -9 ------- Run | Yrd Mat Mat Min Exi Active Infowar (turns) 95 | . 95 . . . Structural 95 | . 95 . . . Robot Analysis Total . | . . . . . Derelict Logs Recovered 1 | . . . 1 . Drone Launches . | . . . . . Drone Recoveries . | . . . . . Exploration | -11 -10 -9 -9 -9 ------------- Run | Yrd Mat Mat Min Exi Turns Passed 4006 | 56 398 1810 1269 473 Spaces Moved 2095 | 39 186 902 739 229 Core 18 | 18 . . . . Treads 2077 | 21 186 902 739 229 Legs . | . . . . . Wheels . | . . . . . Hover . | . . . . . Flight . | . . . . . Fastest Speed 50 | 50 160 160 160 160 Average Speed 160 | 109 160 160 160 174 Slowest Speed 200 | 160 160 160 160 200 Overloaded Moves . | . . . . . Propulsion Burnouts . | . . . . . Robots Hopped . | . . . . . Potential Cave-ins . | . . . . . Cave-ins Triggered . | . . . . . Exploration Rate (%) 52 | 4 36 83 99 40 Regions Visited 4 Branch Regions 2 Pre-discovered Areas 4 | . . 2 2 . Known Exits Taken 1 | . . 1 . . Unknown Exits Taken 3 | 1 1 . 1 . Scrap Searched 2 | . . . 2 . Spaces Dug . | . . . . . Terrain Destroyed . | . . . . . Melee . | . . . . . Projectile . | . . . . . AOE . | . . . . . Terrain Rammed . | . . . . . Walls Destroyed . | . . . . . Machines Disabled . | . . . . . Actions | -11 -10 -9 -9 -9 --------- Run | Yrd Mat Mat Min Exi Total 2510 | 50 237 1125 821 277 Wait 177 | . 10 73 74 20 Move 2091 | 38 185 901 738 229 Hop . | . . . . . Pick Up 35 | 5 10 17 3 . Fast Attach 5 | 1 . 3 . 1 Attach 17 | 5 2 3 . 7 Detach 2 | . . . . 2 Swap 25 | . . 24 1 . Drop 33 | . 1 29 2 1 Fire 122 | 1 27 75 2 17 Melee . | . . . . . Ram . | . . . . . Kick . | . . . . . Crush 3 | . 2 . 1 . Escape Stasis . | . . . . . Rewire . | . . . . . Trap . | . . . . . Miscellaneous . | . . . . . Route ------- -11/Scrapyard -10/Materials -9/Materials (discovered 5 exits: *Mat x3 / *Min x2) -9/Mines (discovered 4 exits: *Mat x2 / *Exi / [*Zio]) -9/Exiles History --------- Turn | Location | Event 13 | -11/Scrapyard | Discovered new exit (range 15) 57 | -11/Scrapyard | Entered Materials 58 | -10/Materials | Met a group of wandering Federalists 303 | -10/Materials | Build established: Mutant 436 | -10/Materials | Discovered new exit (range 5) 455 | -10/Materials | Entered another Materials area 455 | -9/Materials | Evolved 2 slots: Weapon x2 919 | -9/Materials | Discovered new exit (range 10) 995 | -9/Materials | Build established: Scavenger-Gunner 1166 | -9/Materials | Discovered new exit (range 7) 1706 | -9/Materials | Identified exit to Mines 1706 | -9/Materials | Identified exit to Materials 1758 | -9/Materials | Learned Storage terminal intel 1769 | -9/Materials | Learned location of Zion (-7) 1772 | -9/Materials | Learned Storage stockpile data 1784 | -9/Materials | Learned Storage stockpile data 2265 | -9/Materials | Entered Mines 2266 | -9/Mines | Assembled infested the area 2410 | -9/Mines | Discovered exit to Materials (range 11) 2504 | -9/Mines | Discovered exit to Materials (range 6) 2507 | -9/Mines | A Derelict revealed a hidden shortcut to a safe place 2535 | -9/Mines | Assisted by bots powering up and referring to "LRC-V3" 2554 | -9/Mines | Found a damaged Exp. Sensor Array with a note attached 2558 | -9/Mines | Found Prototype Device 2639 | -9/Mines | Met a Derelict shopkeep closing up shop 2822 | -9/Mines | Learned location of Storage (-8) 3298 | -9/Mines | Discovered new exit (range 5) 3534 | -9/Mines | Entered Exiles 3534 | -9/Exiles | Accompanied by 5 allies 3564 | -9/Exiles | Led the pair of lost Derelicts to a safe place 3574 | -9/Exiles | Met 8R-AWN 3600 | -9/Exiles | Met EX-HEX 3643 | -9/Exiles | Met EX-BIN 3664 | -9/Exiles | Aligned with FarCom system 3666 | -9/Exiles | Given EX-Vault access code 3707 | -9/Exiles | Opened EX-Vault 3771 | -9/Exiles | Found AWS/Gauss 3810 | -9/Exiles | Warned to stay clear of 0b10 Research branches 3958 | -9/Exiles | Attacked by the Exiles 3987 | -9/Exiles | Core integrity fell below 50% 3999 | -9/Exiles | Core integrity fell below 20% 4007 | -9/Exiles | Destroyed by as-54358 with Assembled Heavy Rifle Last Messages --------------- 03997_ Extracted 3 matter. 03997_ Imp. Assault Rifle destroyed. 03999_ Extracted 3 matter. 03999_ HV Slug penetrates Wall. 03999_ Penetrated by HV Slug. 04000_ System corrupted: Heat flow error (+266). 04000_ Destroyed Prototype Protection. 04001_ Extracted 3 matter. 04001_ Penetrated by HV Slug. 04001_ Critical hit (Destroy). 04001_ Lgt. Treads+ destroyed. 04001_ Penetrated by HV Slug. 04003_ Extracted 10 matter. 04003_ Penetrated by HV Slug. 04003_ Critical hit (Destroy). 04003_ Lgt. Treads+ destroyed. 04004_ as-53939 destroyed. 04005_ Imp. Assault Rifle destroyed. 04005_ Penetrated by HV Slug. 04006_ Extracted 10 matter. Map ----- +----------------------------------------------------+ | ""#??????????????????????????????????????????????? | | ""#??????????????????????????????????????????????? | | ""#??????????????????????????????????????????????? | | ""#??????????????????????????????????????????????? | | ""#??????????????????????????????????????????????? | | ""#??????????????????????????????????????????????? | | ""#??????????????????????????????????????????????? | | ""#??????????????????????????????????????????????? | | ""#??????????????????????????????????????????????? | | """??????????????????????????????????????????????? | | ""#??????????????????????????????????????????????? | | """??????????????????????????????????????????????? | | #??????????????????????????????????????????????? | | ""#??????????????????????????????????????????????? | | ###??????????????????????????????????????????????? | | ?????????????????????????????????????????????????? | | ?????????????????????????????????????????????????? | | ?????????????????????????????????????????????????? | | #########????????????????????????????????????????? | | """"""""##???????????????????????????????????????? | | """ """"##?????????????????????????????????# ???? | | "" " #????????????????????????????????# ?? | | " """#???????????????????????????????? # | | " "#???????????#####???????????????# ? | | " "##?????????## g%########???????## ? | | ""###???????#" g@* ;# #?? | | """#??????## %%########??????# #?? | | "#????### a a ###????????### #??? | | ##???# a ########## #??? | | ##?## #""""## #???? | | ###*%! * ##??? | | ## * #??? | | ##;# ##?? | | a ""#?#"""""#### ### | | #"""##?#######??#### * # | | ######??????????????##### | | ##???????????????????????### | | " ##??????????????????????????### | | """ ""#?????????????????????????????### | | ""#" "##??????????????????????????????#" | | ""?##"""""""##???????????????????????????????#### | | "???#########???????????????????????????????????# | | ????????????????????????????????????????????????## | | ?????????????????????????????????????????????????# | | ?????????????????????????????????????????????????? | | ?????????????????????????????????????????????????? | | ?????????????????????????????????????????????????? | | ?????????????????????????????????????????????????? | | ?????????????????????????????????????????????????? | | ?????????????????????????????????????????????????? | +----------------------------------------------------+ Best States ------------- Heat Dissipation 28 Energy Generation 14 Energy Capacity 265 Matter Stores 300 Matter Capacity 300 Sight Range 16 Terrain Scan Density 10 Evasion (%) 50 Targeting Accuracy 5 Recoil Reduction 2 Item Schematics ----------------- None Robot Schematics ------------------ None Fabricated ------------ Nothing Repaired ---------- Nothing Studied --------- Lgt. Assault Rifle | -9/Materials | Hacked Hvy. Assault Rifle | -9/Materials | Hacked Lgt. Treads | -9/Materials | Hacked Imp. Ion Engine | -9/Materials | Hacked Alien Tech Used ----------------- None Achievements -------------- None Challenges ------------ None Game ------ Seed ResetMultinovaWarhead Manual? 0 Play Time 00:28:07 Cumulative 107.0 hours Start 2026.04.05 @ 21:52:29 End 2026.04.05 @ 22:38:47 Sessions 2 Manual Loads 0 Difficulty Rogue Special Mode None Game No. 80 Rogue 80 Adventurer 0 Explorer 0 Win Type - Total 1 Types 0/0/0/1/0/0/0/0/0/0 Lore% 45 Gallery% 50 Achievement% 48 Wizard Run 0 Options --------- Layout 2 ASCII 0 Keyboard 0 Movement Mouse Keybinds 0 Fullscreen 1 Font 48/Smallcaps Map View 50x44 Zoom Use 0% Tactical HUD 1 Map Filters NONE Filters NONE Steam 1 RUN: 7f0beb4f-56f6-4787-99b7-0a71923d8097